bitfinex-derivatives/quotes_BTCF0:USTF0_20250216
["timestamp","ask_amount","ask_price","bid_price","bid_amount"]
[1739719064843,8e-05,97000.0,96998.0,0.2061583]
[1739719065743,0.0307,97015.0,96997.0,0.3935]
[1739719065744,0.00015463,97009.0,97008.0,0.2061378]
[1739719065939,0.00015463,97009.0,97008.0,0.5669378]
[1739719067344,0.00015463,97009.0,97008.0,1.4369378]
[1739719068248,0.00215463,97009.0,97008.0,1.4389378]
[1739719068740,0.0307,97015.0,97008.0,1.2328]
[1739719068943,0.0307,97015.0,97008.0,0.7236]
[1739719069139,0.0307,97015.0,97009.0,0.032]
[1739719069537,0.0307,97015.0,97013.0,0.2061264]
[1739719071147,0.0347,97015.0,97013.0,0.2061264]
[1739719071645,0.0307,97015.0,97013.0,0.2071264]
[1739719071847,0.0347,97015.0,97013.0,0.2071264]
[1739719073248,0.0347,97015.0,97013.0,0.21802601]
[1739719075241,0.004,97015.0,97013.0,0.21802601]
[1739719075947,0.004,97015.0,97014.0,0.87]
[1739719077137,0.004,97015.0,97014.0,0.871]
[1739719077446,0.004,97015.0,97014.0,1.077125]
[1739719080347,0.00015463,97024.0,97014.0,0.871]
[1739719080647,0.5789,97114.0,97022.0,0.3608]
[1739719080648,0.0616,97039.0,97022.0,0.3608]
[1739719080951,0.0616,97039.0,97036.0,0.3608]
[1739719081356,0.0616,97039.0,97037.0,0.87]
[1739719081649,0.0307,97039.0,97038.0,0.2060741]
[1739719081845,0.0329,97043.0,97042.0,0.2060656]
[1739719082244,0.0329,97043.0,97042.0,1.0760656]
[1739719083744,0.0389,97043.0,97042.0,1.0760656]
[1739719084450,0.0459,97043.0,97042.0,1.0770656]
[1739719086846,0.0459,97043.0,97042.0,1.08803329]
[1739719088158,0.0459,97043.0,97042.0,0.01196769]
[1739719088159,0.2519635,97043.0,97042.0,0.01196769]
[1739719093645,0.2519635,97043.0,97042.0,0.001]
[1739719095564,0.4067,97043.0,97024.0,0.87]
[1739719095757,0.4067,97043.0,97027.0,0.01056686]
[1739719095758,0.2060932,97029.0,97027.0,0.01056686]
[1739719095963,0.2060932,97029.0,97024.0,0.8706]
[1739719096350,0.2060932,97029.0,97024.0,1.0767036]
[1739719096553,0.2060932,97029.0,97025.0,0.2061012]
[1739719096754,0.0312,97042.0,97024.0,0.8706]
[1739719097058,0.03958,97043.0,97041.0,0.2060677]
[1739719097262,0.0389,97043.0,97041.0,0.2060677]
[1739719097663,0.0389,97043.0,97042.0,0.0626]
[1739719098359,0.006,97043.0,97042.0,0.9326]
[1739719100668,0.013,97043.0,97042.0,0.9326]
[1739719101367,0.013,97043.0,97042.0,0.9336]
[1739719101567,0.007,97043.0,97042.0,0.9336]
[1739719103260,0.007,97043.0,97042.0,1.1396656]
[1739719104665,0.013,97043.0,97042.0,1.1396656]
[1739719106064,0.00015463,97048.0,97047.0,0.206055]
[1739719106270,0.00015463,97048.0,97047.0,0.566855]
[1739719107365,0.00715463,97048.0,97047.0,0.567855]
[1739719107765,0.01415463,97048.0,97047.0,0.568855]
[1739719111469,0.01415463,97048.0,97047.0,1.438855]
[1739719123087,0.01415463,97048.0,97047.0,1.799655]
[1739719142605,0.01415463,97048.0,97047.0,2.04516234]
[1739719147410,0.01415463,97048.0,97047.0,1.799655]
[1739719152116,0.00016,97055.0,97052.0,0.2060435]
[1739719152517,0.00016,97055.0,97053.0,0.2060422]
[1739719154114,0.00016,97055.0,97054.0,0.2060401]
[1739719154914,0.00716,97055.0,97054.0,0.2060401]
[1739719155419,0.00016,97055.0,97054.0,0.2060401]
[1739719155612,0.00716,97055.0,97054.0,0.2070401]
[1739719156414,0.00316,97055.0,97054.0,0.2080401]
[1739719156618,0.00316,97055.0,97054.0,0.39269114]
[1739719160113,0.00316,97055.0,97054.0,0.18665104]
[1739719160319,0.209198,97055.0,97054.0,0.18665104]
[1739719164318,0.209198,97055.0,97054.0,0.002]
[1739719190435,0.209198,97055.0,97054.0,0.001]
[1739719190636,0.209198,97055.0,97054.0,0.002]
[1739719193436,0.36396,97055.0,97042.0,0.0307]
[1739719193634,0.36396,97055.0,97022.0,0.88973896]
[1739719193635,0.2060656,97042.0,97032.0,0.0314]
[1739719193849,0.2060656,97042.0,97035.0,0.24550734]
[1739719194146,0.2060784,97036.0,97035.0,0.24550734]
[1739719195546,0.2060784,97036.0,97035.0,0.24650734]
[1739719196348,0.2060784,97036.0,97035.0,0.26261562]
[1739719197645,0.2060784,97036.0,97035.0,0.01710828]
[1739719200238,0.2060784,97036.0,97028.0,0.00015463]
[1739719200239,0.206089,97031.0,97028.0,0.00015463]
[1739719201142,0.2060932,97029.0,97028.0,0.00015463]
[1739719201341,0.2061017,97025.0,97024.0,0.3608]
[1739719204147,0.2061017,97025.0,97024.0,0.3648]
[1739719205457,0.2061017,97025.0,97024.0,0.37526485]
[1739719208647,0.2061017,97025.0,97024.0,0.01446485]
[1739719209056,0.3911,97028.0,97015.0,0.00015463]
[1739719209253,0.2061208,97016.0,97015.0,0.00015463]
[1739719210356,0.2061208,97016.0,97015.0,0.00715463]
[1739719211060,0.2061208,97016.0,97015.0,0.01315463]
[1739719211557,0.2061208,97016.0,97015.0,0.01415463]
[1739719212951,0.2061208,97016.0,97015.0,0.02448162]
[1739719213362,0.2061401,97007.0,96995.0,0.54707335]
[1739719213555,0.2061401,97007.0,97000.0,0.0615]
[1739719213855,0.2061401,97007.0,97001.0,0.2061523]
[1739719214560,0.2071401,97007.0,97006.0,0.3678]
[1739719214858,0.001,97007.0,97006.0,0.5809422]
[1739719215654,0.001,97007.0,97006.0,0.59128614]
[1739719218952,0.001,97007.0,97006.0,1.46128614]
[1739719220650,0.00015463,97016.0,97015.0,0.2061231]
[1739719220855,0.00015463,97016.0,97015.0,0.5669231]
[1739719221853,0.00015463,97016.0,97015.0,0.5739231]
[1739719224069,0.00015463,97016.0,97015.0,0.3678]
[1739719224249,0.03105463,97016.0,97015.0,0.3678]
[1739719224653,0.03205463,97016.0,97015.0,0.3728]
[1739719228567,0.03205463,97016.0,97015.0,0.012]
[1739719233170,0.23817543,97016.0,97015.0,0.012]
[1739719241681,0.59897543,97016.0,97015.0,0.012]
[1739719245180,0.39285463,97016.0,97004.0,0.01060832]
[1739719245480,0.2061526,97001.0,97000.0,0.3608]
[1739719246180,0.0304,97012.0,97000.0,0.3608]
[1739719246472,0.13404,97011.0,97000.0,0.3608]
[1739719247081,0.13404,97011.0,97004.0,0.005]
[1739719247380,0.13404,97011.0,97004.0,0.012]
[1739719247877,0.2061526,97001.0,97000.0,0.3658]
[1739719248079,0.2061526,97001.0,97000.0,0.3728]
[1739719248470,0.2061526,97001.0,97000.0,0.37637008]
[1739719249680,0.2061526,97001.0,97000.0,0.37137008]
[1739719250580,0.2071526,97001.0,97000.0,0.37137008]
[1739719250983,0.2081526,97001.0,97000.0,0.37237008]
[1739719252574,0.2081526,97001.0,97000.0,0.01157008]
[1739719260689,0.2081526,97001.0,97000.0,0.21772488]
[1739719261281,0.2081526,97001.0,97000.0,0.01157008]
[1739719271197,0.2081526,97001.0,97000.0,0.02768308]
[1739719272586,0.2081526,97001.0,97000.0,0.23383788]
[1739719273198,0.2081526,97001.0,97000.0,1.10383788]
[1739719273598,0.2081526,97001.0,97000.0,1.10383789]
[1739719274191,0.2081526,97001.0,97000.0,1.08772488]
[1739719275694,0.002,97001.0,97000.0,0.21772488]
[1739719276099,0.002,97001.0,97000.0,1.08772488]
[1739719276290,0.002,97001.0,97000.0,1.10383761]
[1739719277305,0.15449017,97015.0,97014.0,0.2061251]
[1739719277493,0.15449017,97015.0,97014.0,0.22223783]
[1739719278601,0.15549017,97015.0,97014.0,0.22223783]
[1739719279003,0.15649017,97015.0,97014.0,0.22923783]
[1739719279798,0.15649017,97015.0,97014.0,0.2292369]
[1739719282707,0.002,97015.0,97014.0,0.2292369]
[1739719283496,0.0302,97027.0,97014.0,0.0231118]
[1739719283699,0.0302,97027.0,97026.0,0.2060996]
[1739719283900,0.0302,97027.0,97026.0,0.2222095]
[1739719284616,0.0312,97027.0,97026.0,0.2222095]
[1739719284907,0.001,97027.0,97026.0,0.2222095]
[1739719285106,0.001,97027.0,97026.0,0.2545095]
[1739719285507,0.15449017,97029.0,97028.0,0.2060953]
[1739719285709,0.15449017,97029.0,97028.0,0.2222052]
[1739719286709,0.0313,97035.0,97028.0,0.0161099]
[1739719286906,0.0313,97035.0,97034.0,0.3608]
[1739719287107,0.0313,97035.0,97034.0,0.3769099]
[1739719287907,0.0323,97035.0,97034.0,0.3769099]
[1739719289210,0.0363,97035.0,97034.0,0.3769099]
[1739719290011,0.2423805,97035.0,97034.0,0.38721207]
[1739719290512,0.2423805,97035.0,97034.0,0.59329467]
[1739719290913,0.2413805,97035.0,97034.0,0.59329467]
[1739719291214,0.2413805,97035.0,97034.0,0.59429467]
[1739719291517,0.0353,97035.0,97034.0,0.59429467]
[1739719294523,0.004,97035.0,97034.0,0.59429467]
[1739719294912,0.004,97035.0,97034.0,1.46429467]
[1739719295311,0.004,97035.0,97034.0,1.4900658]
[1739719295615,0.00015463,97036.0,97034.0,1.4900658]
[1739719295813,0.00015463,97036.0,97035.0,0.10368103]
[1739719296313,0.00015463,97036.0,97035.0,0.0779099]
[1739719296609,0.00015463,97036.0,97035.0,0.07790695]
[1739719297019,0.00415463,97036.0,97035.0,0.07790695]
[1739719297219,0.00415463,97036.0,97035.0,0.28398745]
[1739719297718,0.00415463,97036.0,97035.0,0.28498745]
[1739719300309,0.0941,97048.0,97035.0,0.07890695]
[1739719300511,0.0941,97048.0,97047.0,0.566855]
[1739719300813,0.0941,97048.0,97047.0,0.58296195]
[1739719301215,0.0941,97048.0,97047.0,0.58296044]
[1739719301516,0.0981,97048.0,97047.0,0.58296044]
[1739719302618,0.0991,97048.0,97047.0,0.58396044]
[1739719302819,0.0991,97048.0,97047.0,0.58396048]
[1739719303614,0.0368,97048.0,97047.0,0.58396048]
[1739719304222,0.0368,97048.0,97047.0,1.45396048]
[1739719310429,0.0368,97048.0,97047.0,1.45396024]
[1739719312034,0.0368,97048.0,97047.0,1.437855]
[1739719313228,0.0368,97048.0,97047.0,1.45396027]
[1739719313534,0.0368,97048.0,97047.0,1.437855]
[1739719314324,0.0368,97048.0,97047.0,1.45395969]
[1739719314723,0.0368,97048.0,97047.0,1.47006418]
[1739719316632,0.0311,97054.0,97047.0,1.26400918]
[1739719316833,0.00016,97055.0,97054.0,0.2060401]
[1739719317132,0.00016,97055.0,97054.0,0.22214459]
[1739719319530,0.00116,97055.0,97054.0,0.22314459]
[1739719319829,0.00716,97055.0,97054.0,0.22414459]
[1739719330350,0.00716,97055.0,97054.0,0.22414413]
[1739719340459,0.00716,97055.0,97054.0,0.58494413]
[1739719340652,0.00716,97055.0,97054.0,0.58494432]
[1739719343961,0.00716,97055.0,97054.0,0.61071115]
[1739719345365,0.00716,97055.0,97054.0,0.61071111]
[1739719346156,0.00716,97055.0,97054.0,0.60971111]
[1739719346863,0.00116,97055.0,97054.0,0.58394381]
[1739719347954,0.00116,97055.0,97054.0,0.60970905]
[1739719350066,0.00116,97055.0,97054.0,0.85553802]
[1739719354163,0.00116,97055.0,97054.0,0.60970905]
[1739719354561,0.00015463,97057.0,97054.0,0.40366895]
[1739719354862,4e-05,97069.0,97065.0,0.2060168]
[1739719355065,4e-05,97069.0,97065.0,0.60868575]
[1739719357368,4e-05,97069.0,97065.0,0.61898373]
[1739719358675,0.00312,97066.0,97065.0,0.61898373]
[1739719359369,0.00312,97066.0,97065.0,0.61998006]
[1739719361069,0.00312,97066.0,97065.0,0.59421681]
[1739719361882,0.00312,97066.0,97065.0,0.59421671]
[1739719363576,0.00312,97066.0,97065.0,0.59421695]
[1739719370389,0.00312,97066.0,97065.0,0.59421684]
[1739719371385,0.00312,97066.0,97065.0,0.61031886]
[1739719375275,0.00312,97066.0,97065.0,0.6103189]
[1739719376879,0.00312,97066.0,97065.0,0.59421688]
[1739719378788,0.00312,97066.0,97065.0,0.59421695]
[1739719379288,0.03542,97066.0,97065.0,0.59421695]
[1739719380183,0.03542,97066.0,97065.0,0.57811478]
[1739719380484,0.03542,97066.0,97065.0,0.59421696]
[1739719387096,0.03242,97066.0,97065.0,0.59421696]
[1739719387291,0.03242,97066.0,97065.0,0.59721696]
[1739719387497,0.03242,97066.0,97065.0,0.59621696]
[1739719388384,0.03242,97066.0,97065.0,0.57711478]
[1739719388582,0.03242,97066.0,97065.0,0.58111478]
[1739719389189,0.03242,97066.0,97065.0,1.45111478]
[1739719390601,0.03242,97066.0,97065.0,1.45011478]
[1739719391394,0.03242,97066.0,97065.0,1.45111478]
[1739719393098,0.03242,97066.0,97065.0,1.44711478]
[1739719393394,0.03242,97066.0,97065.0,1.44911478]
[1739719394496,0.03242,97066.0,97065.0,1.45011478]
[1739719395300,0.2384347,97066.0,97065.0,0.003]
[1739719395492,0.2060211,97063.0,97062.0,0.24608921]
[1739719396896,0.21638463,97063.0,97062.0,0.24608921]
[1739719397097,0.22338463,97063.0,97062.0,0.24708921]
[1739719397305,0.2060359,97056.0,97055.0,4e-05]
[1739719397603,0.5668359,97056.0,97055.0,4e-05]
[1739719400309,0.5678359,97056.0,97055.0,4e-05]
[1739719403907,0.3618,97056.0,97048.0,0.87052]
[1739719404099,0.402638,97055.0,97048.0,0.87052]
[1739719404409,0.300638,97055.0,97048.0,0.87052]
[1739719404803,0.0946,97055.0,97040.0,0.01060131]
[1739719405006,0.206072,97039.0,97033.0,0.18479573]
[1739719405315,0.3608,97039.0,97033.0,0.18479573]
[1739719405501,0.0956,97038.0,97021.0,0.0638]
[1739719405696,0.2061081,97022.0,97021.0,0.0638]
[1739719405901,0.2061081,97022.0,97021.0,0.04147866]
[1739719407506,0.2061081,97022.0,97021.0,0.24758886]
[1739719408212,0.0956,97038.0,97024.0,0.2061031]
[1739719408516,0.0956,97038.0,97025.0,0.0328]
[1739719408706,0.102,97037.0,97025.0,0.0328]
[1739719409303,0.102,97037.0,97025.0,0.2389017]
[1739719409503,0.0956,97038.0,97025.0,0.2389017]
[1739719409709,0.2060996,97026.0,97025.0,0.2389017]
[1739719410116,0.2060996,97026.0,97025.0,0.0328]
[1739719410917,0.2060996,97026.0,97025.0,0.0338]
[1739719411121,0.2060996,97026.0,97025.0,0.9038]
[1739719411511,0.2060996,97026.0,97025.0,0.9028]
[1739719411819,0.2070996,97026.0,97025.0,0.9058]
[1739719412119,0.2070996,97026.0,97025.0,0.9068]
[1739719417530,0.001,97026.0,97025.0,1.1129017]
[1739719417715,0.0313,97047.0,97031.0,0.051522]
[1739719417914,0.0313,97047.0,97044.0,0.3608]
[1739719418220,0.0313,97047.0,97046.0,0.2060572]
[1739719418723,0.0313,97047.0,97046.0,0.01610714]
[1739719419024,0.0313,97047.0,97046.0,0.01610713]
[1739719419412,0.00010279,97048.0,97046.0,0.01610713]
[1739719419617,0.00010279,97048.0,97045.0,0.0974]
[1739719419915,0.00010279,97048.0,97046.0,0.0161071]
[1739719420115,0.00010279,97048.0,97047.0,0.0161071]
[1739719421722,0.00010279,97048.0,97047.0,0.0181071]
[1739719423118,0.00010279,97048.0,97047.0,0.0161071]
[1739719423325,0.00010279,97048.0,97047.0,0.0181071]
[1739719424017,0.00010279,97048.0,97047.0,0.0191071]
[1739719424619,0.00010279,97048.0,97047.0,0.2251621]
[1739719427224,4e-05,97056.0,97055.0,0.206038]
[1739719427427,4e-05,97056.0,97055.0,0.5829451]
[1739719427826,4e-05,97056.0,97055.0,1.4529451]
[1739719429429,4e-05,97056.0,97055.0,1.45294185]
[1739719430140,4e-05,97056.0,97055.0,1.46334718]
[1739719431439,4e-05,97056.0,97055.0,1.25730918]
[1739719431634,0.03294,97056.0,97055.0,1.25730918]
[1739719432739,0.03294,97056.0,97055.0,1.46334718]
[1739719434727,0.03294,97056.0,97055.0,1.10254718]
[1739719434931,0.03294,97056.0,97055.0,1.46334718]
[1739719436233,0.03294,97056.0,97055.0,1.46334722]
[1739719439946,0.03294,97056.0,97055.0,1.46334723]
[1739719441938,0.03294,97056.0,97055.0,1.25730923]
[1739719442134,0.2389759,97056.0,97055.0,1.25730923]
[1739719442842,0.2389759,97056.0,97055.0,1.46334723]
[1739719444150,0.2389759,97056.0,97055.0,1.46334735]
[1739719449848,0.2389759,97056.0,97055.0,1.46334736]
[1739719452555,0.2389759,97056.0,97055.0,1.46334737]
[1739719455054,0.2389759,97056.0,97055.0,1.10254737]
[1739719455262,0.2389759,97056.0,97055.0,1.46334737]
[1739719457055,0.2389759,97056.0,97055.0,1.4794514]
[1739719460558,0.2060759,97056.0,97055.0,1.4794514]
[1739719460762,0.2060759,97056.0,97055.0,1.47945138]
[1739719461961,0.2060759,97056.0,97055.0,1.50521782]
[1739719463657,4e-05,97056.0,97055.0,1.50521782]
[1739719464357,4e-05,97056.0,97055.0,1.50521779]
[1739719465859,4e-05,97056.0,97055.0,1.47945137]
[1739719468165,4e-05,97056.0,97055.0,1.46334736]
[1739719468364,4e-05,97056.0,97055.0,1.47945136]
[1739719472665,4e-05,97056.0,97055.0,1.46334736]
[1739719472865,4e-05,97056.0,97055.0,1.47945076]
[1739719473169,4e-05,97056.0,97055.0,1.47945075]
[1739719477976,0.00015454,97065.0,97055.0,1.2734116]
[1739719478178,0.00015454,97065.0,97064.0,0.5668189]
[1739719478474,0.00015454,97065.0,97064.0,0.59902517]
[1739719480373,0.00315454,97065.0,97064.0,0.59902517]
[1739719481473,0.08428241,97084.0,97083.0,0.2059786]
[1739719481669,0.06723685,97084.0,97083.0,0.58288084]
[1739719481865,0.06723685,97084.0,97083.0,1.45288084]
[1739719482569,0.06723685,97084.0,97083.0,1.46898487]
[1739719483072,0.06723685,97084.0,97083.0,1.47933343]
[1739719483489,0.17404024,97093.0,97091.0,0.2059617]
[1739719483667,0.17404024,97093.0,97092.0,0.40930224]
[1739719484078,0.17404024,97093.0,97092.0,0.43505824]
[1739719484279,0.17404024,97093.0,97092.0,0.45116227]
[1739719486178,0.17404024,97093.0,97092.0,0.47691861]
[1739719487080,0.0963,97099.0,97092.0,0.47691861]
[1739719487278,0.0963,97099.0,97093.0,0.04185824]
[1739719487471,0.0963,97099.0,97094.0,0.04185824]
[1739719487674,0.0963,97099.0,97095.0,0.04185824]
[1739719487873,0.0963,97099.0,97096.0,0.04185824]
[1739719488077,0.0963,97099.0,97097.0,0.04185824]
[1739719488380,0.0963,97099.0,97098.0,0.04185824]
[1739719488878,0.0963,97099.0,97098.0,0.08371891]
[1739719489175,0.0963,97099.0,97098.0,0.0837161]
[1739719489577,0.1003,97099.0,97098.0,0.0837161]
[1739719489781,0.1003,97099.0,97098.0,0.05795946]
[1739719490177,0.1003,97099.0,97098.0,0.03220227]
[1739719491665,0.1003,97099.0,97098.0,0.03320227]
[1739719492270,0.3062447,97099.0,97098.0,0.03320227]
[1739719493971,0.3062447,97099.0,97098.0,0.03320239]
[1739719495173,0.3062447,97099.0,97098.0,0.01709836]
[1739719496578,0.3062447,97099.0,97098.0,0.03319695]
[1739719497268,0.3062447,97099.0,97098.0,0.01709836]
[1739719501983,0.3062447,97099.0,97098.0,0.0170987]
[1739719506382,0.31651469,97099.0,97098.0,0.01709961]
[1739719507884,0.3062447,97099.0,97098.0,0.01709961]
[1739719511584,0.3062447,97099.0,97098.0,0.01709962]
[1739719513495,0.3062447,97099.0,97098.0,0.001]
[1739719513789,0.3062447,97099.0,97098.0,0.01709961]
[1739719519892,0.2099447,97099.0,97098.0,0.01709961]
[1739719520495,0.2099447,97099.0,97098.0,0.04285802]
[1739719521091,0.2099447,97099.0,97098.0,0.91285802]
[1739719521494,0.004,97099.0,97098.0,0.92326483]
[1739719522794,0.004,97099.0,97098.0,0.9651196]
[1739719524398,0.1,97100.0,97098.0,0.9671196]
[1739719524699,0.1,97100.0,97099.0,0.07405363]
[1739719525602,0.1,97100.0,97099.0,0.1159084]
[1739719526800,0.15434794,97109.0,97099.0,0.4767084]
[1739719526992,0.15434794,97109.0,97108.0,0.3608]
[1739719527193,0.15434794,97109.0,97108.0,0.43485363]
[1739719527702,0.51514794,97119.0,97108.0,0.43485363]
[1739719527895,0.51514794,97119.0,97109.0,0.16855363]
[1739719528099,0.51514794,97119.0,97110.0,0.07404314]
[1739719528401,0.51514794,97119.0,97111.0,0.07404314]
[1739719528615,0.51514794,97119.0,97112.0,0.07404314]
[1739719528807,0.51514794,97119.0,97113.0,0.07404314]
[1739719529013,0.51514794,97119.0,97114.0,0.07404314]
[1739719529212,0.51514794,97119.0,97115.0,0.07404314]
[1739719529213,0.52014794,97119.0,97115.0,0.07404314]
[1739719529416,0.52014794,97119.0,97116.0,0.07404314]
[1739719529612,0.52014794,97119.0,97117.0,0.07404314]
[1739719529819,0.52014794,97119.0,97118.0,0.10255047]
[1739719530615,0.51514794,97119.0,97118.0,0.10255047]
[1739719530813,0.52014794,97119.0,97118.0,0.10255047]
[1739719531012,0.52014794,97119.0,97118.0,0.10355047]
[1739719531216,0.15934794,97119.0,97118.0,0.13574283]
[1739719531518,0.15934794,97119.0,97118.0,0.10355047]
[1739719531519,0.005,97119.0,97118.0,0.10355047]
[1739719532127,0.005,97119.0,97118.0,0.10354893]
[1739719532911,0.15434794,97129.0,97118.0,0.10354893]
[1739719532912,0.15434794,97129.0,97127.0,0.2058833]
[1739719533119,0.15434794,97129.0,97128.0,0.64072353]
[1739719533320,0.15434794,97129.0,97128.0,0.43484033]
[1739719534121,0.15934794,97129.0,97128.0,0.43483042]
[1739719534523,0.15934794,97129.0,97128.0,0.40264328]
[1739719534827,0.15934794,97129.0,97128.0,0.40364328]
[1739719535028,0.15434794,97129.0,97128.0,0.40364328]
[1739719535331,0.005,97129.0,97128.0,0.40464328]
[1739719538227,0.0354,97129.0,97128.0,0.40464328]
[1739719539931,0.0314,97129.0,97128.0,0.40464328]
[1739719540427,0.0314,97129.0,97128.0,0.04384328]
[1739719542230,0.0314,97129.0,97128.0,0.002]
[1739719542430,0.14056,97129.0,97128.0,0.04384438]
[1739719542623,0.0314,97129.0,97128.0,0.04384438]
[1739719543018,0.001,97129.0,97128.0,0.24972758]
[1739719544321,8e-05,97134.0,97128.0,0.04384438]
[1739719544521,0.4276505,97144.0,97135.0,0.2058684]
[1739719544722,0.205852,97143.0,97135.0,0.24771278]
[1739719544932,0.205852,97143.0,97135.0,1.11771278]
[1739719545133,0.2218,97144.0,97135.0,1.11771278]
[1739719545433,0.2058602,97139.0,97135.0,1.15955484]
[1739719546525,0.2058602,97139.0,97135.0,1.16055484]
[1739719547326,0.2058602,97139.0,97135.0,0.29155484]
[1739719547525,0.2058602,97139.0,97135.0,0.32355484]
[1739719547925,0.2058602,97139.0,97135.0,1.19355484]
[1739719548430,0.2058602,97139.0,97135.0,0.32355484]
[1739719549436,0.2058622,97138.0,97135.0,0.32355484]
[1739719549630,4e-05,97145.0,97135.0,0.32355484]
[1739719549834,4e-05,97145.0,97143.0,0.2058503]
[1739719550030,4e-05,97145.0,97144.0,0.08039399]
[1739719550233,4e-05,97145.0,97144.0,0.67754329]
[1739719550535,0.2058398,97149.0,97148.0,0.2058398]
[1739719550830,0.2058398,97149.0,97148.0,0.22193379]
[1739719551036,0.2058398,97149.0,97148.0,0.01609399]
[1739719551235,0.0329,97154.0,97148.0,0.01609039]
[1739719551425,0.0329,97154.0,97149.0,0.0160904]
[1739719551426,0.2058366,97150.0,97149.0,0.0160904]
[1739719553121,0.5666366,97150.0,97149.0,0.0160904]
[1739719554429,0.5666366,97150.0,97149.0,0.0170904]
[1739719554837,0.5666366,97150.0,97149.0,0.0170914]
[1739719559028,0.5666366,97150.0,97149.0,0.01709181]
[1739719559431,0.9274366,97150.0,97149.0,0.01709181]
[1739719559729,0.9274366,97150.0,97149.0,0.001]
[1739719560230,0.2058578,97140.0,97139.0,0.00015446]
[1739719560434,0.5666578,97140.0,97139.0,0.01624811]
[1739719560836,0.5666578,97140.0,97139.0,0.0162486]
[1739719564527,0.5666578,97140.0,97139.0,0.01624828]
[1739719566336,0.5666578,97140.0,97139.0,6e-08]
[1739719566736,0.2058705,97134.0,97133.0,4e-05]
[1739719566940,0.5666705,97134.0,97133.0,4e-05]
[1739719568037,0.5779421,97134.0,97133.0,0.00204]
[1739719569039,0.5769421,97134.0,97133.0,4e-05]
[1739719569229,0.7997421,97134.0,97133.0,0.00104]
[1739719569536,0.7894705,97134.0,97133.0,0.00104]
[1739719571124,0.7894705,97134.0,97133.0,0.001]
[1739719571938,0.8220705,97134.0,97133.0,0.001]
[1739719573232,0.4612705,97134.0,97133.0,0.001]
[1739719573541,1.1828705,97134.0,97133.0,0.001]
[1739719574533,1.1828705,97134.0,97131.0,0.0002]
[1739719574534,0.2058748,97132.0,97131.0,0.0002]
[1739719575744,0.5666748,97132.0,97131.0,0.0002]
[1739719577545,0.5676748,97132.0,97131.0,0.0002]
[1739719582843,0.2068748,97132.0,97131.0,0.0002]
[1739719583150,0.5676748,97132.0,97131.0,0.0002]
[1739719587351,0.5676748,97132.0,97131.0,0.01629542]
[1739719587551,0.5676748,97132.0,97131.0,0.07889542]
[1739719591548,0.5676748,97132.0,97131.0,0.07889554]
[1739719593452,0.72202274,97132.0,97131.0,0.07889554]
[1739719595653,0.72202274,97132.0,97131.0,0.0628]
[1739719595856,0.72202274,97132.0,97131.0,0.07889538]
[1739719596858,0.72202274,97132.0,97131.0,0.10464636]
[1739719597065,0.72202274,97132.0,97131.0,0.07889475]
[1739719598261,0.5676748,97132.0,97131.0,0.07889475]
[1739719598562,0.5676748,97132.0,97131.0,0.10464616]
[1739719598751,0.5676748,97132.0,97131.0,0.07889475]
[1739719598956,0.5676748,97132.0,97131.0,0.10464617]
[1739719599960,0.5676748,97132.0,97131.0,0.10464604]
[1739719613274,0.5676748,97132.0,97131.0,0.31052294]
[1739719613275,0.001,97132.0,97131.0,0.31052294]
[1739719613570,0.15445386,97137.0,97136.0,0.2058663]
[1739719613761,0.15445386,97137.0,97136.0,0.24770655]
[1739719614367,0.15445386,97137.0,97136.0,0.2058663]
[1739719614568,0.2218,97142.0,97136.0,0.0418383]
[1739719614866,0.2058603,97140.0,97139.0,0.2058585]
[1739719615072,0.2058603,97140.0,97139.0,0.2476968]
[1739719615463,0.2058603,97140.0,97139.0,0.0418383]
[1739719616072,0.2058603,97140.0,97139.0,0.02574665]
[1739719616466,0.00015427,97143.0,97137.0,0.04629234]
[1739719616671,0.205862,97138.0,97137.0,0.04629234]
[1739719617074,0.205862,97138.0,97137.0,0.08813154]
[1739719617571,0.205862,97138.0,97137.0,0.08913154]
[1739719618572,0.205862,97138.0,97137.0,0.04729234]
[1739719618777,0.205862,97138.0,97137.0,0.07303949]
[1739719619068,0.205862,97138.0,97137.0,0.0312]
[1739719619269,0.205862,97138.0,97137.0,0.07303959]
[1739719619470,0.206862,97138.0,97137.0,0.07303959]
[1739719622172,0.206862,97138.0,97137.0,0.07303975]
[1739719623872,0.206862,97138.0,97137.0,0.04283975]
[1739719626982,0.206862,97138.0,97137.0,0.01709221]
[1739719628480,0.206862,97138.0,97137.0,0.01709386]
[1739719629382,0.206862,97138.0,97137.0,0.04284361]
[1739719629582,0.206862,97138.0,97137.0,0.01709386]
[1739719630371,0.206862,97138.0,97137.0,0.04284379]
[1739719635289,0.206862,97138.0,97137.0,0.0428439]
[1739719635787,0.206862,97138.0,97137.0,0.01709381]
[1739719642893,0.206862,97138.0,97137.0,0.01709505]
[1739719643394,0.206862,97138.0,97137.0,0.01709517]
[1739719644593,0.206862,97138.0,97137.0,0.001]
[1739719645392,0.206862,97138.0,97137.0,0.0170951]
[1739719649193,0.206862,97138.0,97137.0,0.001]
[1739719649393,0.206862,97138.0,97137.0,0.01709514]
[1739719651991,0.206862,97138.0,97137.0,0.01709487]
[1739719660006,0.36107309,97138.0,97137.0,0.01709487]
[1739719660195,0.36107309,97138.0,97137.0,0.01709496]
[1739719665301,0.72187309,97138.0,97137.0,0.01709496]
[1739719668210,0.61772866,97138.0,97137.0,0.01709496]
[1739719670211,0.61772866,97138.0,97137.0,0.01709498]
[1739719672313,0.61772866,97138.0,97137.0,0.01709503]
[1739719674314,0.61772866,97138.0,97137.0,0.01709501]
[1739719676914,0.61772866,97138.0,97137.0,0.01709483]
[1739719678302,0.61772866,97138.0,97137.0,0.01709505]
[1739719687127,0.567662,97138.0,97137.0,0.01709505]
[1739719692419,0.567662,97138.0,97137.0,0.01709521]
[1739719692818,0.567662,97138.0,97137.0,0.01709526]
[1739719693628,0.567662,97138.0,97137.0,0.001]
[1739719694018,0.3618,97138.0,97131.0,0.0002]
[1739719694218,0.2058754,97132.0,97131.0,0.0002]
[1739719694518,0.2058754,97132.0,97131.0,0.01629544]
[1739719694722,0.2367754,97132.0,97131.0,0.01629544]
[1739719695117,0.2367754,97132.0,97131.0,0.01729544]
[1739719696422,0.5975754,97132.0,97131.0,0.01729544]
[1739719697019,0.5985754,97132.0,97131.0,0.01629544]
[1739719702330,0.5676754,97132.0,97131.0,0.01629544]
[1739719709433,0.5676754,97132.0,97131.0,0.01629524]